[Event "*** MasterClass Titled Tuesday Blitz"]
[Site "Chess.com"]
[Date "2017.10.03"]
[Round "4"]
[White "igorkovalenko"]
[Black "Bengalas"]
[Result "0-1"]
[WhiteElo "2716"]
[BlackElo "2552"]
[TimeControl "180+2"]
[EndTime "13:53:26 PDT"]
[Termination "Bengalas won by resignation"]

1. d4 {[%clk 0:03:01.9]} 1... Nf6 {[%clk 0:03:01]} 2. Nf3 {[%clk 0:03:01]} 2...
e6 {[%clk 0:03:01.8]} 3. Bg5 {[%clk 0:02:52.3]} 3... h6 {[%clk 0:03:01.4]} 4.
Bh4 {[%clk 0:02:53.3]} 4... c5 {[%clk 0:03:02]} 5. e3 {[%clk 0:02:52.6]} 5... b6
{[%clk 0:03:02.6]} 6. c3 {[%clk 0:02:53.6]} 6... Bb7 {[%clk 0:03:03.3]} 7. Nbd2
{[%clk 0:02:55.2]} 7... cxd4 {[%clk 0:03:03.9]} 8. exd4 {[%clk 0:02:56.3]} 8...
Be7 {[%clk 0:03:04.2]} 9. Bd3 {[%clk 0:02:56.9]} 9... d6 {[%clk 0:03:05.1]} 10.
Qe2 {[%clk 0:02:57.9]} 10... Nbd7 {[%clk 0:03:05.9]} 11. O-O {[%clk 0:02:59]}
11... O-O {[%clk 0:03:06.2]} 12. Ba6 {[%clk 0:02:59.8]} 12... Qc8 {[%clk
0:03:06.3]} 13. Bxb7 {[%clk 0:03:00.4]} 13... Qxb7 {[%clk 0:03:07.4]} 14. a4
{[%clk 0:03:02.3]} 14... a6 {[%clk 0:03:07.7]} 15. Rfe1 {[%clk 0:03:03.3]} 15...
Rfe8 {[%clk 0:03:07.9]} 16. Nc4 {[%clk 0:03:02.3]} 16... b5 {[%clk 0:02:55.9]}
17. Ne3 {[%clk 0:02:49.8]} 17... Bf8 {[%clk 0:02:42.9]} 18. Bxf6 {[%clk
0:02:48.8]} 18... Nxf6 {[%clk 0:02:43.3]} 19. Qd3 {[%clk 0:02:48.6]} 19... d5
{[%clk 0:01:51.9]} 20. b4 {[%clk 0:02:30.9]} 20... a5 {[%clk 0:01:12.6]} 21.
bxa5 {[%clk 0:02:24.1]} 21... Rxa5 {[%clk 0:01:08.9]} 22. axb5 {[%clk
0:02:25.1]} 22... Rxb5 {[%clk 0:01:03.5]} 23. Reb1 {[%clk 0:02:23.8]} 23...
Rxb1+ {[%clk 0:00:49.8]} 24. Rxb1 {[%clk 0:02:25.7]} 24... Qc7 {[%clk
0:00:50.6]} 25. g3 {[%clk 0:02:09.7]} 25... Rc8 {[%clk 0:00:50.2]} 26. Rc1
{[%clk 0:02:10.5]} 26... Bd6 {[%clk 0:00:47.8]} 27. c4 {[%clk 0:02:09.8]} 27...
dxc4 {[%clk 0:00:47.2]} 28. Rxc4 {[%clk 0:02:10.5]} 28... Qd7 {[%clk 0:00:43.2]}
29. Rxc8+ {[%clk 0:02:11.9]} 29... Qxc8 {[%clk 0:00:44]} 30. Qb5 {[%clk
0:02:11]} 30... Qd7 {[%clk 0:00:37.8]} 31. Qa6 {[%clk 0:02:09.8]} 31... Qc7
{[%clk 0:00:35]} 32. Kg2 {[%clk 0:02:09.3]} 32... g6 {[%clk 0:00:33.9]} 33. Nc4
{[%clk 0:02:08]} 33... Be7 {[%clk 0:00:32.3]} 34. Nfe5 {[%clk 0:01:59]} 34...
Kg7 {[%clk 0:00:32.4]} 35. h4 {[%clk 0:01:48.9]} 35... h5 {[%clk 0:00:32.3]} 36.
Qa2 {[%clk 0:01:20.7]} 36... Qb7+ {[%clk 0:00:29.9]} 37. f3 {[%clk 0:01:18.8]}
37... Nd5 {[%clk 0:00:25.8]} 38. Qc2 {[%clk 0:01:19.4]} 38... Bf6 {[%clk
0:00:25.1]} 39. Nd6 {[%clk 0:01:01.3]} 39... Ne3+ {[%clk 0:00:23.9]} 40. Kf2
{[%clk 0:01:02.3]} 40... Nxc2 {[%clk 0:00:24.9]} 41. Nxb7 {[%clk 0:01:03.9]}
41... Nxd4 {[%clk 0:00:25.9]} 42. Nd7 {[%clk 0:01:05.3]} 42... Nf5 {[%clk
0:00:24.9]} 43. Nxf6 {[%clk 0:00:55.5]} 43... Kxf6 {[%clk 0:00:25.6]} 44. Nc5
{[%clk 0:00:57.4]} 44... Nd6 {[%clk 0:00:23.6]} 45. Nd7+ {[%clk 0:00:58.1]}
45... Ke7 {[%clk 0:00:24.3]} 46. Ne5 {[%clk 0:00:59.4]} 46... Ne8 {[%clk
0:00:25.2]} 47. Ke3 {[%clk 0:01:00.2]} 47... Nf6 {[%clk 0:00:26.3]} 48. Kf4
{[%clk 0:00:58.3]} 48... Nd7 {[%clk 0:00:25.5]} 49. Nd3 {[%clk 0:00:55]} 49...
f6 {[%clk 0:00:25.7]} 50. Ke4 {[%clk 0:00:56.3]} 50... Kd6 {[%clk 0:00:25.1]}
51. Nf4 {[%clk 0:00:57.6]} 51... Nf8 {[%clk 0:00:24.9]} 52. Nd3 {[%clk
0:00:50.8]} 52... e5 {[%clk 0:00:25.1]} 53. Ke3 {[%clk 0:00:47.3]} 53... Ne6
{[%clk 0:00:25.7]} 54. Nf2 {[%clk 0:00:46.4]} 54... Nc5 {[%clk 0:00:26.1]} 55.
g4 {[%clk 0:00:46.3]} 55... Ke6 {[%clk 0:00:26.1]} 56. f4 {[%clk 0:00:44.7]}
56... exf4+ {[%clk 0:00:25.3]} 57. Kxf4 {[%clk 0:00:45.8]} 57... hxg4 {[%clk
0:00:26.1]} 58. Kxg4 {[%clk 0:00:45]} 58... Nd7 {[%clk 0:00:26.9]} 59. Kf4
{[%clk 0:00:42.8]} 59... Ne5 {[%clk 0:00:25.7]} 60. Ne4 {[%clk 0:00:44]} 60...
Nd3+ {[%clk 0:00:24.7]} 61. Ke3 {[%clk 0:00:45]} 61... Ne5 {[%clk 0:00:25.5]}
62. Kf4 {[%clk 0:00:46.3]} 62... Nf7 {[%clk 0:00:23.5]} 63. Nc5+ {[%clk
0:00:47]} 63... Ke7 {[%clk 0:00:24.2]} 64. Ne4 {[%clk 0:00:46.4]} 64... Nd8
{[%clk 0:00:21.1]} 65. Ng3 {[%clk 0:00:46.1]} 65... Ne6+ {[%clk 0:00:21]} 66.
Ke4 {[%clk 0:00:47.1]} 66... Ng7 {[%clk 0:00:22.1]} 67. Kf3 {[%clk 0:00:40.5]}
67... f5 {[%clk 0:00:20.7]} 68. Ne2 {[%clk 0:00:39.7]} 68... Kf6 {[%clk
0:00:21.2]} 69. Nf4 {[%clk 0:00:40.9]} 69... Ne6 {[%clk 0:00:19.8]} 70. Nd5+
{[%clk 0:00:42.2]} 70... Kg7 {[%clk 0:00:19.4]} 71. Ne7 {[%clk 0:00:41.8]} 71...
Kh6 {[%clk 0:00:18.8]} 72. Kg3 {[%clk 0:00:43.2]} 72... Kh5 {[%clk 0:00:18.4]}
73. Nd5 {[%clk 0:00:43.6]} 73... Nc5 {[%clk 0:00:14.7]} 74. Nf4+ {[%clk
0:00:44.6]} 74... Kh6 {[%clk 0:00:15.2]} 75. Kf3 {[%clk 0:00:40.2]} 75... Ne4
{[%clk 0:00:16.2]} 76. Kg2 {[%clk 0:00:41.2]} 76... Nf6 {[%clk 0:00:16.5]} 77.
Kg3 {[%clk 0:00:42.2]} 77... Nh5+ {[%clk 0:00:17.3]} 0-1

[Event "*** MasterClass Titled Tuesday Blitz"]
[Site "Chess.com"]
[Date "2017.10.03"]
[Round "4"]
[White "pKiLz5Rn9b"]
[Black "Noukii"]
[Result "1-0"]
[WhiteElo "2542"]
[BlackElo "2683"]
[TimeControl "180+2"]
[EndTime "13:53:27 PDT"]
[Termination "pKiLz5Rn9b won by resignation"]

1. Nf3 {[%clk 0:03:01.9]} 1... d5 {[%clk 0:02:58.7]} 2. e3 {[%clk 0:03:03.3]}
2... c6 {[%clk 0:02:59.7]} 3. d4 {[%clk 0:03:03.4]} 3... Nf6 {[%clk 0:03:00.9]}
4. c4 {[%clk 0:03:04.2]} 4... Bf5 {[%clk 0:03:02.5]} 5. Nc3 {[%clk 0:03:04.5]}
5... e6 {[%clk 0:03:03.4]} 6. Be2 {[%clk 0:03:05]} 6... Nbd7 {[%clk 0:03:02.4]}
7. Nh4 {[%clk 0:03:05.1]} 7... Be4 {[%clk 0:02:59.4]} 8. f3 {[%clk 0:03:05.5]}
8... Bg6 {[%clk 0:03:00.1]} 9. g3 {[%clk 0:03:05.1]} 9... Bh5 {[%clk 0:02:54.5]}
10. Qb3 {[%clk 0:02:59.2]} 10... Rb8 {[%clk 0:02:50]} 11. Ng2 {[%clk 0:02:53.4]}
11... Bd6 {[%clk 0:02:34.4]} 12. Nf4 {[%clk 0:02:44.2]} 12... Bxf4 {[%clk
0:02:28.6]} 13. gxf4 {[%clk 0:02:45.3]} 13... O-O {[%clk 0:02:24.7]} 14. Bd2
{[%clk 0:02:42.2]} 14... c5 {[%clk 0:02:09.6]} 15. dxc5 {[%clk 0:02:39.8]} 15...
Nxc5 {[%clk 0:02:07.3]} 16. Qa3 {[%clk 0:02:41.3]} 16... b6 {[%clk 0:01:55.5]}
17. cxd5 {[%clk 0:02:20.4]} 17... Nxd5 {[%clk 0:01:50.6]} 18. O-O-O {[%clk
0:02:06.2]} 18... a5 {[%clk 0:01:51.9]} 19. Nxd5 {[%clk 0:02:03.5]} 19... Qxd5
{[%clk 0:01:45.3]} 20. Bc3 {[%clk 0:01:58.5]} 20... Qc6 {[%clk 0:01:44]} 21. Kb1
{[%clk 0:01:55.6]} 21... Bxf3 {[%clk 0:01:41.5]} 22. Rhg1 {[%clk 0:01:47.8]}
22... f6 {[%clk 0:01:40.3]} 23. Bxf3 {[%clk 0:01:41.3]} 23... Qxf3 {[%clk
0:01:39.3]} 24. Bd4 {[%clk 0:01:43.2]} 24... Rbd8 {[%clk 0:01:29.8]} 25. Ka1
{[%clk 0:01:35.3]} 25... Rd5 {[%clk 0:01:21.4]} 26. Rc1 {[%clk 0:01:30]} 26...
Rc8 {[%clk 0:00:58.3]} 27. Bxf6 {[%clk 0:01:26.6]} 27... g6 {[%clk 0:00:45.9]}
28. Bd4 {[%clk 0:01:26.6]} 28... Kf7 {[%clk 0:00:45.9]} 29. Qc3 {[%clk
0:01:19.7]} 29... Rc7 {[%clk 0:00:37.8]} 30. Qd2 {[%clk 0:01:09.9]} 30... Rcd7
{[%clk 0:00:33]} 31. Qc2 {[%clk 0:01:08.6]} 31... Qe4 {[%clk 0:00:30.1]} 32.
Qxe4 {[%clk 0:01:06.4]} 32... Nxe4 {[%clk 0:00:32]} 33. Bxb6 {[%clk 0:01:04.9]}
33... a4 {[%clk 0:00:26.7]} 34. Bd4 {[%clk 0:01:05.3]} 34... Rh5 {[%clk
0:00:26.4]} 35. Rc2 {[%clk 0:01:05.3]} 35... Rb5 {[%clk 0:00:27.3]} 36. a3
{[%clk 0:01:04.8]} 36... Nd6 {[%clk 0:00:28.6]} 37. Re1 {[%clk 0:01:02.1]} 37...
Nf5 {[%clk 0:00:29.6]} 38. Be5 {[%clk 0:01:03.6]} 38... Rb3 {[%clk 0:00:29.2]}
39. Rc3 {[%clk 0:01:04.1]} 39... Rxc3 {[%clk 0:00:28.7]} 40. Bxc3 {[%clk
0:01:06]} 40... Rd3 {[%clk 0:00:30.2]} 41. e4 {[%clk 0:01:07]} 41... Ne3 {[%clk
0:00:31.8]} 42. Kb1 {[%clk 0:01:03.7]} 42... Ng2 {[%clk 0:00:32.2]} 43. Rf1
{[%clk 0:01:00.6]} 43... Re3 {[%clk 0:00:33.7]} 44. f5 {[%clk 0:00:56.4]} 44...
Rxe4 {[%clk 0:00:32.3]} 45. fxe6+ {[%clk 0:00:50.2]} 45... Kxe6 {[%clk
0:00:32.5]} 46. Rf6+ {[%clk 0:00:51.8]} 46... Kd5 {[%clk 0:00:32.3]} 47. Ra6
{[%clk 0:00:40.2]} 47... Ne3 {[%clk 0:00:31.6]} 48. Bb4 {[%clk 0:00:39.4]} 48...
Kc4 {[%clk 0:00:27.1]} 49. Ka2 {[%clk 0:00:38.9]} 49... Kd3 {[%clk 0:00:19.2]}
50. Rxa4 {[%clk 0:00:38.5]} 50... Nd5 {[%clk 0:00:18.9]} 51. Kb3 {[%clk
0:00:39.9]} 51... Re3 {[%clk 0:00:19.7]} 52. Ra5 {[%clk 0:00:37.7]} 52... Kd4+
{[%clk 0:00:19.7]} 53. Ka4 {[%clk 0:00:38.9]} 53... Rh3 {[%clk 0:00:19]} 54. Bd6
{[%clk 0:00:36.5]} 54... Nb6+ {[%clk 0:00:16.3]} 55. Kb5 {[%clk 0:00:35.2]}
55... Nc4 {[%clk 0:00:14.2]} 56. Ra4 {[%clk 0:00:28.5]} 56... Rb3+ {[%clk
0:00:14.8]} 57. Rb4 {[%clk 0:00:25.2]} 57... Rxb4+ {[%clk 0:00:15.3]} 58. Bxb4
{[%clk 0:00:25.8]} 58... Nxb2 {[%clk 0:00:16.7]} 59. h4 {[%clk 0:00:20.8]} 59...
Ke4 {[%clk 0:00:16.6]} 60. Bc3 {[%clk 0:00:20.3]} 60... Nd3 {[%clk 0:00:16.3]}
61. a4 {[%clk 0:00:20.5]} 61... Kd5 {[%clk 0:00:17.8]} 62. a5 {[%clk 0:00:21.2]}
62... Nc5 {[%clk 0:00:19.4]} 63. Bb4 {[%clk 0:00:22.3]} 63... Ne6 {[%clk
0:00:18.6]} 64. Kb6 {[%clk 0:00:22.8]} 64... Kc4 {[%clk 0:00:20]} 65. Bd6 {[%clk
0:00:23.5]} 65... Nd4 {[%clk 0:00:17.5]} 66. a6 {[%clk 0:00:23.8]} 66... Nb5
{[%clk 0:00:19.2]} 67. Bf8 {[%clk 0:00:24.9]} 67... h5 {[%clk 0:00:19]} 68. Be7
{[%clk 0:00:25.7]} 68... Nc3 {[%clk 0:00:20]} 69. a7 {[%clk 0:00:25.5]} 69...
Nd5+ {[%clk 0:00:21.9]} 70. Kb7 {[%clk 0:00:27]} 70... Nxe7 {[%clk 0:00:22.5]}
71. a8=Q {[%clk 0:00:28.2]} 71... Kd5 {[%clk 0:00:24.4]} 72. Qe8 {[%clk
0:00:28.4]} 72... Ke6 {[%clk 0:00:25.8]} 73. Kc7 {[%clk 0:00:29]} 73... Kf6
{[%clk 0:00:27.7]} 74. Kd7 {[%clk 0:00:30]} 74... Nf5 {[%clk 0:00:29.6]} 75.
Qf8+ {[%clk 0:00:29.1]} 75... Ke5 {[%clk 0:00:30.9]} 76. Qh8+ {[%clk 0:00:29.4]}
76... Ke4 {[%clk 0:00:28]} 77. Qf6 {[%clk 0:00:29.5]} 77... Kf4 {[%clk 0:00:27]}
78. Qg5+ {[%clk 0:00:30.2]} 78... Ke5 {[%clk 0:00:28]} 79. Ke8 {[%clk
0:00:27.4]} 1-0

[Event "*** MasterClass Titled Tuesday Blitz"]
[Site "Chess.com"]
[Date "2017.10.03"]
[Round "4"]
[White "ChessWarrior7197"]
[Black "Blitzstream"]
[Result "1/2-1/2"]
[WhiteElo "2657"]
[BlackElo "2503"]
[TimeControl "180+2"]
[EndTime "13:53:41 PDT"]
[Termination "Game drawn - insufficient material"]

1. e4 {[%clk 0:03:01.9]} 1... d5 {[%clk 0:03:00.9]} 2. exd5 {[%clk 0:03:02]}
2... Qxd5 {[%clk 0:03:02.8]} 3. Nf3 {[%clk 0:03:01]} 3... Bg4 {[%clk 0:03:03.5]}
4. Be2 {[%clk 0:03:00.2]} 4... Nc6 {[%clk 0:03:04.4]} 5. O-O {[%clk 0:03:01.3]}
5... O-O-O {[%clk 0:03:04.8]} 6. h3 {[%clk 0:03:00.3]} 6... Bxf3 {[%clk
0:03:05.4]} 7. Bxf3 {[%clk 0:03:00.9]} 7... Qd7 {[%clk 0:03:07.3]} 8. Nc3 {[%clk
0:03:01]} 8... Nd4 {[%clk 0:03:06.9]} 9. d3 {[%clk 0:03:00.1]} 9... Nf6 {[%clk
0:03:06.4]} 10. Be3 {[%clk 0:03:00]} 10... e6 {[%clk 0:03:04.2]} 11. Bxd4 {[%clk
0:02:56.3]} 11... Qxd4 {[%clk 0:03:04.9]} 12. Ne2 {[%clk 0:02:58.2]} 12... Qh4
{[%clk 0:03:00.3]} 13. c3 {[%clk 0:02:54.5]} 13... g5 {[%clk 0:02:57.1]} 14. Nd4
{[%clk 0:02:38.6]} 14... h5 {[%clk 0:02:13.8]} 15. Qb3 {[%clk 0:02:37.5]} 15...
Nd5 {[%clk 0:02:04.6]} 16. Qa4 {[%clk 0:02:14.8]} 16... Bc5 {[%clk 0:01:55.5]}
17. Rfe1 {[%clk 0:01:44.3]} 17... Bxd4 {[%clk 0:01:40]} 18. cxd4 {[%clk
0:01:43.8]} 18... g4 {[%clk 0:01:40.1]} 19. Bxd5 {[%clk 0:01:26.6]} 19... Rxd5
{[%clk 0:00:56.1]} 20. Qxa7 {[%clk 0:01:04.9]} 20... gxh3 {[%clk 0:00:56.8]} 21.
g3 {[%clk 0:01:05.5]} 21... Qg4 {[%clk 0:00:48]} 22. Re3 {[%clk 0:01:03.1]}
22... Qxd4 {[%clk 0:00:20]} 23. Qa8+ {[%clk 0:01:03.8]} 23... Kd7 {[%clk
0:00:21]} 24. Qxb7 {[%clk 0:01:04.9]} 24... h4 {[%clk 0:00:22.1]} 25. Rc1 {[%clk
0:01:04.6]} 25... Rc8 {[%clk 0:00:21.6]} 26. Rc4 {[%clk 0:01:03.4]} 26... h2+
{[%clk 0:00:18.4]} 27. Kh1 {[%clk 0:00:54.8]} 27... Qf6 {[%clk 0:00:15.3]} 28.
Qc6+ {[%clk 0:00:55.5]} 28... Kd8 {[%clk 0:00:15.3]} 29. Rf4 {[%clk 0:00:53]}
29... Rf5 {[%clk 0:00:10.6]} 30. Rxf5 {[%clk 0:00:50.4]} 30... Qxf5 {[%clk
0:00:11.5]} 31. Rf3 {[%clk 0:00:51.7]} 31... Qg6 {[%clk 0:00:05.4]} 32. Kxh2
{[%clk 0:00:48.6]} 32... h3 {[%clk 0:00:03.3]} 33. Qe4 {[%clk 0:00:47.7]} 33...
Qg8 {[%clk 0:00:02.5]} 34. Qh4+ {[%clk 0:00:46.1]} 34... Ke8 {[%clk 0:00:03.4]}
35. Qa4+ {[%clk 0:00:44.1]} 35... Ke7 {[%clk 0:00:04.2]} 36. Qb4+ {[%clk
0:00:44.9]} 36... Ke8 {[%clk 0:00:05.4]} 37. Rf4 {[%clk 0:00:44.4]} 37... Rd8
{[%clk 0:00:06.2]} 38. Qb5+ {[%clk 0:00:40.7]} 38... Ke7 {[%clk 0:00:06.4]} 39.
Qc5+ {[%clk 0:00:41.8]} 39... Ke8 {[%clk 0:00:04.3]} 40. Qxc7 {[%clk 0:00:40.7]}
40... Qg6 {[%clk 0:00:04.8]} 41. Rh4 {[%clk 0:00:35.9]} 41... Qg7 {[%clk
0:00:03.9]} 42. Rb4 {[%clk 0:00:36.1]} 42... Qf6 {[%clk 0:00:03.2]} 43. Rf4
{[%clk 0:00:35.3]} 43... Qg6 {[%clk 0:00:04]} 44. d4 {[%clk 0:00:34.2]} 44...
Rd7 {[%clk 0:00:04.2]} 45. Qc8+ {[%clk 0:00:35.3]} 45... Ke7 {[%clk 0:00:05.5]}
46. Qc5+ {[%clk 0:00:36.4]} 46... Ke8 {[%clk 0:00:06.5]} 47. Kxh3 {[%clk
0:00:37.3]} 47... Rd5 {[%clk 0:00:06]} 48. Qc8+ {[%clk 0:00:37.8]} 48... Ke7
{[%clk 0:00:07]} 49. Qc7+ {[%clk 0:00:39]} 49... Ke8 {[%clk 0:00:08.2]} 50. Kg2
{[%clk 0:00:40]} 50... Rh5 {[%clk 0:00:07.5]} 51. a4 {[%clk 0:00:39.9]} 51...
Qh7 {[%clk 0:00:08.6]} 52. Qc6+ {[%clk 0:00:37.4]} 52... Ke7 {[%clk 0:00:09.5]}
53. a5 {[%clk 0:00:38]} 53... Rh2+ {[%clk 0:00:07.2]} 54. Kg1 {[%clk 0:00:39]}
54... Rh5 {[%clk 0:00:08.9]} 55. Qe4 {[%clk 0:00:28.2]} 55... Qxe4 {[%clk
0:00:07.7]} 56. Rxe4 {[%clk 0:00:30.1]} 56... Rxa5 {[%clk 0:00:09.6]} 57. Re2
{[%clk 0:00:31.2]} 57... Kd6 {[%clk 0:00:10.8]} 58. b4 {[%clk 0:00:31.9]} 58...
Rb5 {[%clk 0:00:11.3]} 59. Rb2 {[%clk 0:00:31.8]} 59... Kd5 {[%clk 0:00:12.8]}
60. Kg2 {[%clk 0:00:33.3]} 60... Kxd4 {[%clk 0:00:14.1]} 61. Kf3 {[%clk
0:00:34.6]} 61... Kc3 {[%clk 0:00:15.4]} 62. Rb1 {[%clk 0:00:35.1]} 62... Rf5+
{[%clk 0:00:14.1]} 63. Ke3 {[%clk 0:00:35.5]} 63... Rb5 {[%clk 0:00:12.8]} 64.
Rc1+ {[%clk 0:00:34.9]} 64... Kxb4 {[%clk 0:00:12.1]} 65. Rb1+ {[%clk
0:00:35.8]} 65... Kc5 {[%clk 0:00:14]} 66. Rxb5+ {[%clk 0:00:36.6]} 66... Kxb5
{[%clk 0:00:15.9]} 67. Ke4 {[%clk 0:00:37.8]} 67... Kc6 {[%clk 0:00:17.8]} 68.
Ke5 {[%clk 0:00:38.4]} 68... Kd7 {[%clk 0:00:19.4]} 69. Kf6 {[%clk 0:00:39]}
69... Ke8 {[%clk 0:00:20.9]} 70. f4 {[%clk 0:00:39.5]} 70... Kf8 {[%clk
0:00:22.1]} 71. g4 {[%clk 0:00:40.7]} 71... Kg8 {[%clk 0:00:23.4]} 72. g5 {[%clk
0:00:41.6]} 72... Kf8 {[%clk 0:00:24.6]} 73. Ke5 {[%clk 0:00:32]} 73... Ke7
{[%clk 0:00:23.8]} 74. f5 {[%clk 0:00:32.4]} 74... exf5 {[%clk 0:00:24.5]} 75.
Kxf5 {[%clk 0:00:34.3]} 75... Kf8 {[%clk 0:00:25.8]} 76. Kf6 {[%clk 0:00:35.3]}
76... Kg8 {[%clk 0:00:27.1]} 77. g6 {[%clk 0:00:36.4]} 77... fxg6 {[%clk
0:00:28.1]} 78. Kxg6 {[%clk 0:00:37.4]} 1/2-1/2

[Event "*** MasterClass Titled Tuesday Blitz"]
[Site "Chess.com"]
[Date "2017.10.03"]
[Round "5"]
[White "Jospem"]
[Black "PlotnikovPavel"]
[Result "1-0"]
[WhiteElo "2553"]
[BlackElo "2446"]
[TimeControl "180+2"]
[EndTime "14:02:54 PDT"]
[Termination "Jospem won by resignation"]

1. e4 {[%clk 0:03:00.5]} 1... e6 {[%clk 0:03:01.2]} 2. d4 {[%clk 0:02:59.8]}
2... d5 {[%clk 0:03:02.4]} 3. Nc3 {[%clk 0:03:00.8]} 3... Nf6 {[%clk 0:03:02.8]}
4. e5 {[%clk 0:03:01.5]} 4... Ng8 {[%clk 0:03:03.9]} 5. Nce2 {[%clk 0:03:00]}
5... b6 {[%clk 0:02:52.1]} 6. h4 {[%clk 0:02:57.8]} 6... Ba6 {[%clk 0:02:51.7]}
7. h5 {[%clk 0:02:58.9]} 7... h6 {[%clk 0:02:49.8]} 8. c3 {[%clk 0:02:57.7]}
8... Qd7 {[%clk 0:02:48.9]} 9. Nf3 {[%clk 0:02:55.7]} 9... c5 {[%clk 0:02:49.3]}
10. a3 {[%clk 0:02:54.7]} 10... Ne7 {[%clk 0:02:42.6]} 11. g4 {[%clk 0:02:54.4]}
11... Nbc6 {[%clk 0:02:24.8]} 12. Bg2 {[%clk 0:02:55.1]} 12... cxd4 {[%clk
0:02:22.3]} 13. cxd4 {[%clk 0:02:53.6]} 13... Na5 {[%clk 0:02:23.2]} 14. O-O
{[%clk 0:02:54.4]} 14... g6 {[%clk 0:02:20.6]} 15. b4 {[%clk 0:02:48.1]} 15...
Nc4 {[%clk 0:02:13.3]} 16. Nf4 {[%clk 0:02:48.1]} 16... g5 {[%clk 0:02:09.1]}
17. Nd3 {[%clk 0:02:48.6]} 17... Bg7 {[%clk 0:02:07.1]} 18. a4 {[%clk
0:02:49.5]} 18... O-O {[%clk 0:02:05.5]} 19. Re1 {[%clk 0:02:48.8]} 19... f5
{[%clk 0:01:57.9]} 20. exf6 {[%clk 0:02:49.6]} 20... Bxf6 {[%clk 0:01:57.2]} 21.
b5 {[%clk 0:02:49.4]} 21... Bb7 {[%clk 0:01:55.1]} 22. Nfe5 {[%clk 0:02:50.7]}
22... Nxe5 {[%clk 0:01:45.3]} 23. Nxe5 {[%clk 0:02:51.1]} 23... Bxe5 {[%clk
0:01:46]} 24. Rxe5 {[%clk 0:02:51.7]} 24... Rf6 {[%clk 0:01:42.2]} 25. Qe1
{[%clk 0:02:45.7]} 25... Raf8 {[%clk 0:01:42.5]} 26. Ra2 {[%clk 0:02:46.9]}
26... Bc8 {[%clk 0:01:34]} 27. Rae2 {[%clk 0:02:46.3]} 27... Qd6 {[%clk
0:01:31.8]} 28. Qc3 {[%clk 0:02:45.1]} 28... Bd7 {[%clk 0:01:31.8]} 29. Ba3
{[%clk 0:02:45.3]} 1-0

[Event "*** MasterClass Titled Tuesday Blitz"]
[Site "Chess.com"]
[Date "2017.10.03"]
[Round "5"]
[White "Tarlev_Konstantin"]
[Black "RaphaeI"]
[Result "1-0"]
[WhiteElo "2600"]
[BlackElo "2415"]
[TimeControl "180+2"]
[EndTime "14:03:38 PDT"]
[Termination "Tarlev_Konstantin won by resignation"]

1. b3 {[%clk 0:03:01.9]} 1... e5 {[%clk 0:03:00.2]} 2. Bb2 {[%clk 0:03:02.3]}
2... Nc6 {[%clk 0:03:01.7]} 3. e3 {[%clk 0:03:03.9]} 3... d5 {[%clk 0:03:02.9]}
4. Bb5 {[%clk 0:03:04.9]} 4... Bd6 {[%clk 0:03:03.3]} 5. Nf3 {[%clk 0:03:03.8]}
5... Qe7 {[%clk 0:03:01.8]} 6. c4 {[%clk 0:02:55]} 6... a6 {[%clk 0:02:49.8]} 7.
Bxc6+ {[%clk 0:02:54.1]} 7... bxc6 {[%clk 0:02:50.4]} 8. c5 {[%clk 0:02:55]}
8... Bxc5 {[%clk 0:02:47.5]} 9. Nxe5 {[%clk 0:02:54.6]} 9... Bb7 {[%clk
0:02:11.7]} 10. O-O {[%clk 0:02:53.8]} 10... Bd6 {[%clk 0:01:49.8]} 11. Nf3
{[%clk 0:02:52.2]} 11... Nf6 {[%clk 0:01:50.2]} 12. d3 {[%clk 0:02:52.3]} 12...
c5 {[%clk 0:01:50.5]} 13. Nbd2 {[%clk 0:02:53.7]} 13... O-O {[%clk 0:01:51.2]}
14. Rc1 {[%clk 0:02:48.6]} 14... a5 {[%clk 0:01:52.3]} 15. Qc2 {[%clk
0:02:47.2]} 15... a4 {[%clk 0:01:45.3]} 16. Rfe1 {[%clk 0:02:44.2]} 16... Rfe8
{[%clk 0:01:44.4]} 17. e4 {[%clk 0:02:26.8]} 17... axb3 {[%clk 0:01:36.3]} 18.
Qxb3 {[%clk 0:02:20.1]} 18... dxe4 {[%clk 0:00:44.3]} 19. Qxb7 {[%clk
0:02:12.2]} 19... Rab8 {[%clk 0:00:45.2]} 20. Bxf6 {[%clk 0:02:13.1]} 20... Qxf6
{[%clk 0:00:47.1]} 21. Nxe4 {[%clk 0:02:12]} 1-0

[Event "*** MasterClass Titled Tuesday Blitz"]
[Site "Chess.com"]
[Date "2017.10.03"]
[Round "5"]
[White "Vrolijk"]
[Black "Margency"]
[Result "1-0"]
[WhiteElo "2473"]
[BlackElo "2516"]
[TimeControl "180+2"]
[EndTime "14:03:47 PDT"]
[Termination "Vrolijk won by resignation"]

1. d4 {[%clk 0:03:01.9]} 1... Nf6 {[%clk 0:03:01.2]} 2. c4 {[%clk 0:03:02.4]}
2... g6 {[%clk 0:03:02.3]} 3. Nc3 {[%clk 0:03:03.4]} 3... d5 {[%clk 0:03:03.6]}
4. cxd5 {[%clk 0:03:01.6]} 4... Nxd5 {[%clk 0:03:05.5]} 5. Bd2 {[%clk
0:03:02.7]} 5... Nb6 {[%clk 0:03:05.9]} 6. e3 {[%clk 0:02:53.9]} 6... Bg7 {[%clk
0:03:02.2]} 7. f4 {[%clk 0:02:54.1]} 7... O-O {[%clk 0:03:00.4]} 8. Nf3 {[%clk
0:02:54.5]} 8... c5 {[%clk 0:02:59.8]} 9. dxc5 {[%clk 0:02:56.4]} 9... N6d7
{[%clk 0:02:57.9]} 10. Ne4 {[%clk 0:02:57.9]} 10... Na6 {[%clk 0:02:51.4]} 11.
Bxa6 {[%clk 0:02:50.2]} 11... bxa6 {[%clk 0:02:51.5]} 12. c6 {[%clk 0:02:38.9]}
12... Nb8 {[%clk 0:02:43.6]} 13. Rc1 {[%clk 0:02:37.7]} 13... Nxc6 {[%clk
0:02:44.3]} 14. Rxc6 {[%clk 0:02:36.5]} 14... Bb7 {[%clk 0:02:25.4]} 15. Rc4
{[%clk 0:02:25.8]} 15... Qd3 {[%clk 0:02:21.5]} 16. Qa4 {[%clk 0:02:10.6]} 16...
Qb1+ {[%clk 0:02:12]} 17. Kf2 {[%clk 0:02:11]} 17... Qd3 {[%clk 0:01:57.8]} 18.
Nc5 {[%clk 0:02:09]} 18... Qd5 {[%clk 0:01:53.9]} 19. Nxb7 {[%clk 0:02:06.7]}
19... Qxb7 {[%clk 0:01:54.7]} 20. Qb3 {[%clk 0:02:02.7]} 20... Qd5 {[%clk
0:01:53]} 21. Bc3 {[%clk 0:01:48]} 21... Rab8 {[%clk 0:01:47.4]} 22. Rb4 {[%clk
0:01:48.2]} 22... Qa8 {[%clk 0:01:47.6]} 23. Bxg7 {[%clk 0:01:45]} 23... Kxg7
{[%clk 0:01:49.5]} 24. Rxb8 {[%clk 0:01:45.5]} 24... Rxb8 {[%clk 0:01:49.8]} 25.
Qc3+ {[%clk 0:01:47.4]} 25... Kg8 {[%clk 0:01:48.9]} 26. Rd1 {[%clk 0:01:49]}
26... Qe4 {[%clk 0:01:45.2]} 27. b3 {[%clk 0:01:40.9]} 27... h6 {[%clk
0:01:43.7]} 28. Qe5 {[%clk 0:01:41]} 28... Qb4 {[%clk 0:01:40.6]} 29. Rd4 {[%clk
0:01:39.3]} 29... Qb7 {[%clk 0:01:41.6]} 30. Qd5 {[%clk 0:01:37.6]} 30... Qb6
{[%clk 0:01:37.8]} 31. Ne5 {[%clk 0:01:37.6]} 31... e6 {[%clk 0:01:33.9]} 32.
Qd7 {[%clk 0:01:37.5]} 32... Rb7 {[%clk 0:01:34.7]} 33. Qe8+ {[%clk 0:01:37.4]}
33... Kg7 {[%clk 0:01:35.6]} 34. Rd8 {[%clk 0:01:38.7]} 1-0